Cogmind - Beta 16 @@@ ROGUE MODE // 2025.12.07 @ 06:45:58 Player: Vriska Result: Destroyed by G-47 Trooper with Particle Gun Performance ------------- Evolutions (3) 1500 Regions Visited (6) 1200 Robots Destroyed (60) 300 Value Destroyed (1422) 1422 Prototype IDs (26) 520 Alien Tech Used (0) 0 Bonus (300) 300 TOTAL SCORE: 5242 Bonus ------- Aligned with FarCom 300 Cogmind --------- Core Integrity 0/700 Matter 280/300 Energy 4/100 System Corruption 5% Temperature Cool (9) Movement Core (100) Ox1 Location -7/Factory Parts ------- > --- POWER (1) -------- (None) > --- PROPULSION (3) --- (None) > --- UTILITY (6) ------ Small Storage Unit Machine Analyzer Advanced Visual Processing Unit Advanced Terrain Scan Processor > --- WEAPON (3) ------- (None) > --- INVENTORY (8) ---- Heavy Deuterium Engine Carbon-fiber Leg Improved Titanium Leg Large Storage Unit Advanced Visual Processing Unit Improved Signal Interpreter Terrain Scan Processor Peak State ------------ > --- POWER ------------ Heavy Deuterium Engine > --- PROPULSION ------- Carbon-fiber Leg Potential Leg Potential Leg > --- UTILITY ---------- Large Storage Unit Improved Terrain Scanner Advanced Terrain Scan Processor Improved Medium Armor Plating Hacking Suite Hacking Suite > --- WEAPON ----------- Shock Rifle Improved EM Pulse Cannon Spear > --- INVENTORY -------- Heavy Deuterium Engine Carbon-fiber Leg Carbon-fiber Leg Small Storage Unit Machine Analyzer Advanced Visual Processing Unit Advanced Visual Processing Unit Experimental Sensor Array Improved Signal Interpreter Terrain Scan Processor Improved Targeting Computer Light Armor Plating Proton Missile Launcher [Rating: 61] Favorites ----------- Power Light Ion Engine Engine Light Ion Engine Propulsion Potential Leg Treads Light Treads Leg Potential Leg Flight Unit Cooled VTOL Module Utility Hacking Suite Device Improved Terrain Scanner Storage Large Storage Unit Processor Targeting Computer Hackware Hacking Suite Protection Hardened Light Armor Plating Weapon Grenade Launcher Energy Gun Shock Rifle Energy Cannon EM Pulse Cannon Ballistic Gun Assault Rifle Launcher Grenade Launcher Slashing Weapon Katana Piercing Weapon Spear Build | -11 -10 -10 -10 -9 -8 -7 ------- Run | Yrd Mat Min Exi Min Mat Fac Slots Evolved 6 | . . . . . 4 2 Power . | . . . . . . . Propulsion 1 | . . . . . . 1 Utility 4 | . . . . . 4 . Weapon 1 | . . . . . . 1 Parts Attached 53 | 7 5 1 2 4 17 17 Power 7 | 1 . . . 2 3 1 Engine 7 | 1 . . . 2 3 1 Core . | . . . . . . . Reactor . | . . . . . . . Propulsion 8 | 2 1 . 2 . . 3 Treads 3 | 2 1 . . . . . Leg 4 | . . . 2 . . 2 Wheel . | . . . . . . . Hover . | . . . . . . . Flight 1 | . . . . . . 1 Utility 19 | 1 3 . . 2 6 7 Device 2 | . . . . . . 2 Storage 3 | 1 2 . . . . . Processor 4 | . 1 . . . . 3 Hackware 3 | . . . . 1 2 . Protection 7 | . . . . 1 4 2 Artifact . | . . . . . . . Weapon 19 | 3 1 1 . . 8 6 Energy Gun 5 | . . . . . 2 3 Energy Cannon 2 | . . 1 . . . 1 Ballistic Gun 7 | 3 . . . . 4 . Ballistic Cannon . | . . . . . . . Launcher 3 | . 1 . . . 1 1 Special Weapon . | . . . . . . . Impact Weapon . | . . . . . . . Slashing Weapon 1 | . . . . . 1 . Piercing Weapon 1 | . . . . . . 1 Special Melee Weapon . | . . . . . . . Unidentified Prototypes 3 | . . . . . . 3 Parts Lost 26 | . . . . 1 8 17 Power 4 | . . . . . 3 1 Propulsion 4 | . . . . . . 4 Utility 8 | . . . . . 2 6 Weapon 10 | . . . . 1 3 6 Highest Loss Streak 13 | . . . . 1 3 13 To Critical Strikes . | . . . . . . . Average Backups 9 | . 5 9 11 12 11 12 Power . | . 1 1 1 1 . . Propulsion 1 | . . 1 1 2 2 2 Utility 6 | . 1 5 8 8 7 9 Weapon 1 | . 1 1 1 1 . . Tool/Special . | . . . . . . . Unused Backups 9 | . . . . . . 9 Power 1 | . . . . . . 1 Propulsion 2 | . . . . . . 2 Utility 6 | . . . . . . 6 Weapon . | . . . . . . . Tool/Special . | . . . . . . . Average Slot Usage (%) 95 | . 92 100 99 97 93 93 Engine 11 | . 14 14 14 14 8 6 Treads 12 | . 28 28 18 . . . Leg 12 | . . . 8 28 18 21 Storage 12 | . 15 14 14 14 10 7 Processor 4 | . 5 14 14 . . 3 Hackware 10 | . . . . 12 25 18 Protection 5 | . . . . . 14 9 Energy Gun 2 | . . . . . 2 9 Energy Cannon 3 | . . 1 14 12 . 3 Ballistic Gun 8 | . 18 12 . . 9 . Launcher 7 | . 9 14 14 14 3 . Slashing Weapon 1 | . . . . . 1 4 Peak Build Rating 61 | 6 8 11 29 32 51 61 Average Rating 27 | 4 6 8 17 30 43 55 On Entrance 18 | . 6 8 11 29 29 49 Avg Prop Armor Cover (%) . | . . . . . . . Naked Turns . | . . . . . . . Heaviest Build 55 | 12 38 32 32 35 45 55 Greatest Support 75 | 40 40 40 60 60 60 75 Greatest Overweight (x) 9 | . . . 1 . . 9 Average Overweight (x) . | . . . . . . . Largest Inventory Capacity 15 | 8 15 15 15 15 15 15 Average Capacity 14 | 6 11 15 15 15 15 15 Most Carried 15 | 2 9 13 13 14 15 15 Average Carried 9 | . 5 9 11 12 11 12 Final Capacity 15 | 8 15 15 15 15 15 8 Final Carried 14 | 2 9 11 13 14 13 7 Class Distribution -------------------- 61% | Mutant 27% | Hacker-Mutant 7% | Hacker-Assassin Dominant Class ---------------- Mutant | -10/Materials Mutant | -10/Mines Mutant | -10/Exiles Mutant | -9/Mines Hacker-Mutant | -8/Materials Hacker-Mutant | -7/Factory Resources | -11 -10 -10 -10 -9 -8 -7 ----------- Run | Yrd Mat Min Exi Min Mat Fac Matter Collected 1612 | 183 267 103 . 168 568 323 Remotely . | . . . . . . . Salvage Created 2001 | . 378 . . 158 854 611 Parts 134 | . 35 . . 1 64 34 Haulers Intercepted 1 | . 1 . . . . . Recyclers Shooed . | . . . . . . . Parts Field Recycled . | . . . . . . . Retrieved Matter . | . . . . . . . Parts Self-Destructed . | . . . . . . . Prevented . | . . . . . . . Parts Restored . | . . . . . . . Kills | -11 -10 -10 -10 -9 -8 -7 ------- Run | Yrd Mat Min Exi Min Mat Fac Combat Hostiles Destroyed 45 | . 13 . . 8 19 5 Melee 3 | . . . . . . 3 Guns 24 | . 6 . . . 17 1 Cannons 7 | . . . . 6 . 1 AOE 11 | . 7 . . 2 2 . Classes Destroyed 15 | . 9 . . 1 2 3 Worker 5 | . 1 . . . 2 2 Builder 5 | . 3 . . . 1 1 Tunneler 1 | . 1 . . . . . Hauler 1 | . 1 . . . . . Recycler 4 | . 1 . . . . 3 Mechanic 1 | . . . . . . 1 Operator 1 | . 1 . . . . . Watcher 3 | . 2 . . . 1 . Swarmer 17 | . 12 . . . 5 . Grunt 11 | . 1 . . 2 6 2 Duelist 1 | . . . . . . 1 Sentry 8 | . . . . . 7 1 Hunter 1 | . . . . . 1 . Programmer 1 | . . . . . . 1 Assembled 6 | . . . . 6 . . Best Kill Streak 8 | . 8 . . 4 5 3 Combat Bots Only 4 | . 3 . . 4 4 2 Max Kills in Single Turn 3 | . 3 . . 2 2 2 Gunslinging 1 | . . . . . 1 . Exploded 2 | . 2 . . 2 1 . Melee 1 | . . . . . . 1 Uniques/NPCs Destroyed . | . . . . . . . Combat | -11 -10 -10 -10 -9 -8 -7 -------- Run | Yrd Mat Min Exi Min Mat Fac Hostile Shots Fired 511 | . 65 . . 20 143 283 Missed 155 | . 19 . . 7 42 87 Hits 356 | . 46 . . 13 101 196 Melee 6 | . . . . 2 . 4 Projectile 350 | . 46 . . 11 101 192 AOE 3 | . . . . 3 . . Critical Strikes 10 | . . . . . 3 7 Damage Taken 5035 | . 405 . . 215 2056 2359 Core 1290 | . 70 . . 75 431 714 Absorbed by Shields . | . . . . . . . Ignored by Resistances 14 | . . . . . . 14 Core Remaining (%) 54 | 100 . . . 42 21 . Volleys Fired 175 | . 54 . . 21 66 34 Largest 3 | . 2 . . 1 2 3 Hottest 164 | . 40 . . 63 119 164 Shots Fired 285 | . 77 . . 21 115 72 Gun 228 | . 67 . . . 100 61 Cannon 29 | . . . . 19 . 10 Launcher 28 | . 10 . . 2 15 1 Special . | . . . . . . . Kinetic 154 | . 67 . . . 87 . Thermal 10 | . . . . . 10 . Explosive 27 | . 10 . . 2 15 . Electromagnetic 94 | . . . . 19 3 72 Robot Hit Streak 8 | . 8 . . 4 8 6 Robot Miss Streak 6 | . 4 . . 3 3 6 Penetration Max . | . . . . . . . Secondary Targets 3 | . . . . . 3 . Max Gunslinging Chain 1 | . . . . . 1 . Shots Hit Robots 171 | . 35 . . 12 62 62 Core Hits 108 | . 36 . . 9 38 25 Critical Kills . | . . . . . . . Critical Parts Destroyed . | . . . . . . . Critical Strikes 5 | . . . . 1 2 2 Burn 2 | . . . . . 2 . Corrupt 1 | . . . . 1 . . Impale 2 | . . . . . . 2 Melee Attacks 54 | . . . . . 17 37 Impact . | . . . . . . . Slashing 27 | . . . . . 17 10 Piercing 27 | . . . . . . 27 Sneak Attacks 5 | . . . . . . 5 Combat Hostiles . | . . . . . . . Follow-up Attacks . | . . . . . . . Damage Inflicted 3939 | . 1178 . . 369 1234 1158 Guns 1621 | . 419 . . . 1002 200 Cannons 274 | . . . . 226 . 48 Explosions 1336 | . 759 . . 143 232 202 Melee 707 | . . . . . . 707 Ramming 1 | . . . . . . 1 Kinetic 1271 | . 419 . . . 852 . Thermal 290 | . . . . . 116 174 Explosive 1134 | . 759 . . 143 232 . Electromagnetic 536 | . . . . 226 34 276 Impact . | . . . . . . . Slashing 212 | . . . . . . 212 Piercing 495 | . . . . . . 495 Highest Corruption 5 | . . . . . 4 5 Average Corruption 2 | . . . . . 4 2 Corruption Purged . | . . . . . . . Corruption Blocked . | . . . . . . . Effects 12 | . . . . . . 12 Message Errors 5 | . . . . . . 5 Matter Fused 1 | . . . . . . 1 Heat Flow Errors 2 | . . . . . . 2 Energy Discharges 2 | . . . . . . 2 Data Loss (major) 1 | . . . . . . 1 Weapon Failures 1 | . . . . . . 1 Overload Shots . | . . . . . . . Overflow Damage 153 | . 34 . . . . 119 Projectiles . | . . . . . . . Explosions 34 | . 34 . . . . . Melee 119 | . . . . . . 119 Knockbacks . | . . . . . . . Impact . | . . . . . . . Kinetic . | . . . . . . . Secondary . | . . . . . . . Self-Inflicted Damage 208 | . . . . 8 200 . Shots 9 | . . . . 1 8 . Rammed 1 | . . . . . . 1 Targets Rammed 1 | . . . . . . 1 Kicked . | . . . . . . . Crushed . | . . . . . . . Highest Temperature 402 | . . . . 70 249 402 Average Temperature 98 | . . . . 32 59 168 Received Heat Transfer 1118 | . 66 . . 29 468 555 Effects 5 | . . . . . 2 3 Shutdowns 1 | . . . . . . 1 Energy Bleed 1 | . . . . . . 1 Interference 2 | . . . . . 2 . Matter Decay 1 | . . . . . . 1 Siege Activations . | . . . . . . . Martial Activations . | . . . . . . . Shielding Activations . | . . . . . . . Robots Disrupted . | . . . . . . . Combat Hostiles . | . . . . . . . Robots Corrupted . | . . . . . . . Combat Hostiles . | . . . . . . . Parts Fried 3 | . . . . . . 3 Impact Corruptions . | . . . . . . . Robots Melted . | . . . . . . . Combat Hostiles . | . . . . . . . Parts Melted 1 | . . . . . 1 . Heat Transferred 520 | . . . . . 370 150 Parts Sabotaged . | . . . . . . . Parts Stolen . | . . . . . . . Parts Stripped . | . . . . . . . Power Chain Reactions 3 | . . . . . . 3 Alert | -11 -10 -10 -10 -9 -8 -7 ------- Run | Yrd Mat Min Exi Min Mat Fac Maximum Alert Level 1 | . . . . . 1 . Low Security (%) 85 | 100 100 100 . 100 32 100 Level 1 14 | . . . . . 67 . Level 2 . | . . . . . . . Level 3 . | . . . . . . . Level 4 . | . . . . . . . Level 5 . | . . . . . . . High Security . | . . . . . . . Max Security . | . . . . . . . Peak Influence 390 | . 161 18 . 69 390 149 Initial 149 | . . 18 . . . 149 Average 76 | . 54 . . 7 228 55 Influence Increases 1591 | . 422 . . 69 758 342 Destroy 0b10 Robot/C 780 | . 260 . . 40 380 100 Destroy 0b10 Robot/NC 105 | . 50 . . . 20 35 Destroy Leader 218 | . 56 . . 10 122 30 Successful Hack 4 | . . . . . 4 . Disable Machine 90 | . 15 . . . 60 15 Destroy Structure 154 | . 41 . . 19 82 12 Lose Combat Pursuer 240 | . . . . . 90 150 Influence Decreases 1551 | . 374 48 . 69 428 632 Entered New Map 211 | . . 30 . . . 181 Time Decay 1116 | . 374 18 . 69 348 307 Lost Part 224 | . . . . . 80 144 Squads Dispatched 17 | . 1 1 . 1 8 6 Investigation 3 | . . 1 . 1 1 . Extermination 2 | . . . . . . 2 Reinforcement 4 | . 1 . . . 2 1 Assault . | . . . . . . . Garrison 8 | . . . . . 5 3 Intercept . | . . . . . . . Searches Triggered . | . . . . . . . Construction Impeded . | . . . . . . . Haulers Reinforced . | . . . . . . . Active Scanning Responses . | . . . . . . . Cargo Convoy Interrupts . | . . . . . . . Stealth | -11 -10 -10 -10 -9 -8 -7 --------- Run | Yrd Mat Min Exi Min Mat Fac Distress Signals 5 | . . . . . 4 1 Communications Jammed . | . . . . . . . Distress Signals . | . . . . . . . Times Spotted 87 | . 23 . . 12 33 19 Peak Tracking Total 7 | . 4 . . 3 6 7 Tactical Retreats 9 | . . . . 2 3 4 Traps | -11 -10 -10 -10 -9 -8 -7 ------- Run | Yrd Mat Min Exi Min Mat Fac Traps Triggered . | . . . . . . . Indirectly . | . . . . . . . Trap Hack Attempts . | . . . . . . . Triggered . | . . . . . . . Disarmed . | . . . . . . . Reprogrammed . | . . . . . . . Reused . | . . . . . . . Traps Extracted . | . . . . . . . Installed . | . . . . . . . Triggered . | . . . . . . . Machines | -11 -10 -10 -10 -9 -8 -7 ---------- Run | Yrd Mat Min Exi Min Mat Fac Machines Disabled 6 | . 1 . . . 4 1 Max in Single Turn 2 | . 1 . . . 2 1 Garrison Access 1 | . . . . . 1 . Machines Repaired . | . . . . . . . Machines Dismantled . | . . . . . . . Machines Sabotaged . | . . . . . . . Overloaded Fab Kills . | . . . . . . . Hacking | -11 -10 -10 -10 -9 -8 -7 --------- Run | Yrd Mat Min Exi Min Mat Fac Machines Accessed 8 | . 1 1 1 1 4 . Terminals 3 | . . . . 1 2 . Fabricators . | . . . . . . . Repair Stations 1 | . 1 . . . . . Recycling Units . | . . . . . . . Scanalyzers 1 | . . . . . 1 . Garrison Access 1 | . . . . . 1 . Total Hacks 15 | . 1 1 1 2 10 . Successful 7 | . . 1 1 . 5 . Failed 8 | . 1 . . 2 5 . Catastrophic 2 | . . . . 1 1 . Database Lockouts . | . . . . . . . Manual 8 | . . . 1 1 6 . Terminals 9 | . . . . 2 7 . Fabricators . | . . . . . . . Repair Stations 1 | . 1 . . . . . Recycling Units . | . . . . . . . Scanalyzers 1 | . . . . . 1 . Garrison Access 2 | . . . . . 2 . Terminal Hacks 5 | . . 1 1 . 3 . Robot Analysis 1 | . . . . . 1 . Open Door 1 | . . 1 . . . . Level Access Points 1 | . . . . . 1 . Branch Access Points 1 | . . . . . 1 . Proto ID Catalog 1 | . . . 1 . . . Fabricator Hacks . | . . . . . . . Repair Station Hacks . | . . . . . . . Recycling Unit Hacks . | . . . . . . . Scanalyzer 1 | . . . . . 1 . Insert Component 1 | . . . . . 1 . Garrison Access Hacks 1 | . . . . . 1 . Seal Access 1 | . . . . . 1 . Unauthorized Hacks . | . . . . . . . Terminals . | . . . . . . . Fabricators . | . . . . . . . Repair Stations . | . . . . . . . Recycling Units . | . . . . . . . Scanalyzers . | . . . . . . . Garrison Access . | . . . . . . . Data Cores Recovered . | . . . . . . . Used . | . . . . . . . Hacking Detections 4 | . 1 . . 1 2 . Full Trace Events 2 | . . . . 1 1 . Feedback Events . | . . . . . . . Feedback Blocked . | . . . . . . . Robot Schematics Acquired . | . . . . . . . Robots Built . | . . . . . . . Authchips . | . . . . . . . Time . | . . . . . . . Total Robot Build Rating . | . . . . . . . Part Schematics Acquired . | . . . . . . . Parts Built . | . . . . . . . Authchips . | . . . . . . . Time . | . . . . . . . Total Part Build Rating . | . . . . . . . Part Studies Acquired . | . . . . . . . Parts Repaired . | . . . . . . . Time . | . . . . . . . Parts Recycled . | . . . . . . . Recycled Matter . | . . . . . . . Retrieved Matter . | . . . . . . . Retrieved Components . | . . . . . . . Parts Scanalyzed . | . . . . . . . Part Schematics Acquired . | . . . . . . . Parts Damaged . | . . . . . . . Bothacking | -11 -10 -10 -10 -9 -8 -7 ------------ Run | Yrd Mat Min Exi Min Mat Fac Used RIF Installer . | . . . . . . . Robots Hacked . | . . . . . . . Non-combat . | . . . . . . . Combat . | . . . . . . . Robot Hacks Applied . | . . . . . . . Relay Couplers Released . | . . . . . . . Fabnet Peak Effective % . | . . . . . . . Robots Rewired . | . . . . . . . Allies Hacked . | . . . . . . . Hacks Repelled . | . . . . . . . Allies | -11 -10 -10 -10 -9 -8 -7 -------- Run | Yrd Mat Min Exi Min Mat Fac Total Allies . | . . . . . . . Largest Group . | . . . . . . . Highest-Rated Group . | . . . . . . . Highest-Rated Ally . | . . . . . . . Total Orders . | . . . . . . . Ally Attacks . | . . . . . . . Total Damage . | . . . . . . . Kills . | . . . . . . . Allies Corrupted . | . . . . . . . Allies Melted 1 | . . . . 1 . . Intel | -11 -10 -10 -10 -9 -8 -7 ------- Run | Yrd Mat Min Exi Min Mat Fac Active Infowar (turns) 413 | . . . . . . 413 Optics 6 | . . . . . . 6 Terrain 411 | . . . . . . 411 Machine Analysis 5 | . . . . . . 5 Robot Analysis Total 1 | . . . . . 1 . Derelict Logs Recovered 2 | . . 1 . 1 . . Drone Launches . | . . . . . . . Drone Recoveries . | . . . . . . . Exploration | -11 -10 -10 -10 -9 -8 -7 ------------- Run | Yrd Mat Min Exi Min Mat Fac Turns Passed 4647 | 81 1103 663 290 660 953 897 Spaces Moved 3298 | 46 600 409 223 683 685 652 Core 5 | 4 . . . . . 1 Treads 1166 | 42 600 409 115 . . . Legs 2127 | . . . 108 683 685 651 Wheels . | . . . . . . . Hover . | . . . . . . . Flight . | . . . . . . . Fastest Speed 45 | 50 160 160 90 45 45 60 Average Speed 114 | 150 160 160 126 87 83 97 Slowest Speed 500 | 160 160 160 240 90 90 500 Overloaded Moves 179 | . . . . 31 96 52 Propulsion Burnouts . | . . . . . . . Robots Hopped . | . . . . . . . Potential Cave-ins 8 | . . . . . 8 . Cave-ins Triggered 1 | . . . . . 1 . Exploration Rate (%) 52 | 4 90 92 43 81 45 15 Regions Visited 6 Branch Regions 3 Pre-discovered Areas 1 | . . . . 1 . . Known Exits Taken 1 | . . . . . 1 . Unknown Exits Taken 5 | 1 1 1 1 1 . . Scrap Searched 3 | . . 1 . 2 . . Spaces Dug 22 | . . . . . 17 5 Terrain Destroyed 196 | . 46 . . 30 109 11 Melee 22 | . . . . . 17 5 Projectile . | . . . . . . . AOE 174 | . 46 . . 30 92 6 Terrain Rammed . | . . . . . . . Walls Destroyed . | . . . . . . . Machines Disabled . | . . . . . . . Actions | -11 -10 -10 -10 -9 -8 -7 --------- Run | Yrd Mat Min Exi Min Mat Fac Total 3810 | 54 664 419 230 722 936 785 Wait 155 | . . 4 . 7 123 21 Move 3292 | 45 599 408 222 682 684 652 Hop . | . . . . . . . Pick Up 36 | 2 5 4 2 3 14 6 Fast Attach 30 | 6 2 . 3 1 7 11 Attach 26 | . . 1 . 2 14 9 Detach 4 | . 1 . . 1 1 1 Swap 7 | 1 3 . . 1 1 1 Drop 30 | . . 2 3 4 9 12 Fire 175 | . 54 . . 21 66 34 Melee 54 | . . . . . 17 37 Ram 1 | . . . . . . 1 Kick . | . . . . . . . Crush . | . . . . . . . Escape Stasis . | . . . . . . . Rewire . | . . . . . . . Trap . | . . . . . . . Miscellaneous . | . . . . . . . Route ------- -11/Scrapyard -10/Materials (discovered 5 exits: [*Mat x3] / *Min x2) -10/Mines (discovered 2 exits: [*Mat] / *Exi) -10/Exiles -9/Mines -8/Materials (discovered 3 exits: *Fac x3) -7/Factory (discovered 2 exits: [*Fac x2]) History --------- Turn | Location | Event 29 | -11/Scrapyard | Discovered new exit (range 16) 82 | -11/Scrapyard | Entered Materials 273 | -10/Materials | Discovered new exit (range 14) 311 | -10/Materials | Build established: Mutant 649 | -10/Materials | Discovered new exit (range 15) 872 | -10/Materials | Discovered new exit (range 4) 912 | -10/Materials | Discovered new exit (range 14) 992 | -10/Materials | Discovered new exit (range 14) 1185 | -10/Materials | Entered Mines 1198 | -10/Mines | Met a Derelict bent on vengeance 1407 | -10/Mines | Discovered new exit (range 12) 1494 | -10/Mines | Learned location of 1 exit from Materials 1747 | -10/Mines | Met a Derelict shopkeep closing up shop 1842 | -10/Mines | Deemed a non-threat by the Exiles lab entrance 1842 | -10/Mines | Discovered new exit (range 5) 1848 | -10/Mines | Entered Exiles 1887 | -10/Exiles | Met 8R-AWN 1916 | -10/Exiles | Met EX-HEX 1965 | -10/Exiles | Met EX-BIN 1984 | -10/Exiles | Aligned with FarCom system 1986 | -10/Exiles | Given EX-Vault access code 2023 | -10/Exiles | Opened EX-Vault 2036 | -10/Exiles | Found Potential Leg 2040 | -10/Exiles | Found Potential Leg 2065 | -10/Exiles | Warned to stay clear of 0b10 Research branches 2127 | -10/Exiles | Discovered new exit (range 15) 2138 | -10/Exiles | Left Exiles lab with Potential Leg 2138 | -10/Exiles | Entered Mines 2153 | -9/Mines | Assembled infested the area 2160 | -9/Mines | Learned location of Storage (-9) 2646 | -9/Mines | Found a damaged Exp. Sensor Array with a note attached 2648 | -9/Mines | Found Prototype Device 2664 | -9/Mines | Learned 2 Materials zone layouts 2693 | -9/Mines | Core integrity fell below 50% 2789 | -9/Mines | Discovered new exit (range 11) 2798 | -9/Mines | Entered Materials 2798 | -8/Materials | Evolved 4 slots: Utility x4 2799 | -8/Materials | Identified exit to Factory 3097 | -8/Materials | Garrison activated, responded to threat 3178 | -8/Materials | Build established: Hacker-Mutant 3357 | -8/Materials | Lost 3 parts (1p1u1w) 3668 | -8/Materials | Crushed by falling debris 3668 | -8/Materials | Core integrity fell below 50% 3751 | -8/Materials | Entered Factory 3751 | -7/Factory | Evolved 2 slots: Propulsion x1, Weapon x1 3819 | -7/Factory | Discovered new exit (range 12) 3984 | -7/Factory | Discovered new exit (range 3) 4146 | -7/Factory | Lost 3 parts (1u2w) 4584 | -7/Factory | Build established: Hacker-Assassin 4626 | -7/Factory | Core integrity fell below 50% 4642 | -7/Factory | Core integrity fell below 20% 4648 | -7/Factory | Destroyed by G-47 Trooper with Particle Gun Last Messages --------------- Destroyed Shock Rifle. Destroyed Gravmag System. Carbon-fiber Leg destroyed. Spear destroyed. Hacking Suite destroyed. Slammed into P-60 Hacker. U-05 Engineer lays Concrete. HIVEZV#MEUUD AH<>A2Q6YYUT A/YDUD2UZ U-05 Engineer lays Concrete. Dropped Lgt. Armor Plating. Dropped Prototype Device. U-05 Engineer lays Concrete. Dropped Imp. Melee Analysis Suite. Dropped Imp. Targeting Computer. U-05 Engineer lays Concrete. Imp. Terrain Scanner destroyed. Hacking Suite destroyed. U-05 Engineer lays Concrete. R-06 Scavenger collects Imp. Melee Analysis Suite. ALERT: Cargo convoy en route, clear transfer corridor. Map ----- +----------------------------------------------------+ | ?????????????????????????????????????????????????? | | ?????????????????????????????????????????????????? | | ?????????????????????????????????????????????????? | | ?????????????????????????????????????????????????? | | ?????????????????????????????????????????????????? | | ?????????????????????????????????????????????????? | | ?????????????????????????????????????????????????? | | ?????????????????????????????????????????????????? | | ???????????????????? ? ? ????????????????????? | | ???????????????? ??? ? ? #??????????????????? | | ??????????????? ? ######? ? ""???????????????? | | ??????????????############? ?? ""???????????????? | | ?????????????##?########### ?+ ? ?????????????? | | ???????????##?########?#### #? ?????????????? | | ????????????#?#?""""""" ### ####?###???????????? | | ???????????#### """"?"" # ##?###???????????? | | ?????????###### "?"""""?# #######??????????? | | ??????????##### ""?"""" # " ?##?????????? | | ?????????##?### + "T ? ?+?????????? | | ?????????###??# = # ###?????????? | | ??????????##### ? # ## ### ????????? | | ?????????#?#### # ## ?## ????????? | | ?????????##??############# ### ## ????????? | | ??????? ######## !=! # ### ? ?#? ????????? | | ?????????##?#### u==Yp#r ### #?#? ???????? | | ?????????####?## "g%@a # #?????????? | | ?????????####### u """ %#g # ???????? | | ????????######## """[# # ????????? | | ?????????###?###u"""""""/# # " ?????????? | | ?????????####### # # ? ? ?"????? | | ?????????####### = u # # ????????? | | ??????????############g### # ?#??? "????? | | ?????????###?######## ########?# ?? ????? | | ?????????#?#######?## ########## ?"""??? | | ?????????#?########## # #?? ?"???? | | ???????????###########+### # [!! # ?"???? | | ??????#???### # # [!/ # ? ""???? | | ???????????## # # !!/ #? ? ???? | | ?????#??????# ! # # #? ?"????? | | ???????##??## + + # ??"??" | | ??????#?#???# # # ] """ # ???"???" | | ?#?????#????#= """" """" # # """ # """??? | | ????#???##?## """" """" # %=# """ # ??? | | #???????#??## """" """" # # # ? """??" | | ????##?#?##?# """" """" # ######+###???"?"?"? | | ?#?#???#?#??# """" """" # #?# ??? "? | | ?#?#??#????## """" """" # ###? ??? ?? | | #???????????# # ### ?? ???? | | #??##??####?##+########### ### """??? | | ???#?##??##??# #?#?#?##### """??? | +----------------------------------------------------+ Best States ------------- Heat Dissipation 48 Energy Generation 18 Energy Capacity 310 Matter Stores 300 Matter Capacity 300 Sight Range 16 Terrain Scan Range 16 Terrain Scan Density 210 Armor Coverage 375 Resistance: TH 10 Evasion (%) 66 Targeting Accuracy 5 Recoil Reduction 2 Offensive Hacking 30 Item Schematics ----------------- None Robot Schematics ------------------ None Fabricated ------------ Nothing Repaired ---------- Nothing Studied --------- None Alien Tech Used ----------------- None Achievements -------------- Omniscient Cartographer Sprinter Challenges ------------ None Game ------ Seed SpreadHardcellSpoofer Manual? 0 Play Time 00:40:09 Cumulative 34.5 hours Start 2025.12.07 @ 06:07:14 End 2025.12.07 @ 06:45:58 Sessions 1 Manual Loads 0 Difficulty Rogue Special Mode None Game No. 60 Rogue 60 Adventurer 0 Explorer 0 Win Type - Total 0 Types 0/0/0/0/0/0/0/0/0/0 Lore% 28 Gallery% 28 Achievement% 23 Wizard Run 0 Options --------- Layout 0 ASCII 0 Keyboard 0 Movement Numpad Keybinds 0 Fullscreen 1 Font 18/SmallcapsGlow Map View 76x50 Zoom Use 0% Tactical HUD 0 Map Filters NONE Filters NONE Steam 1 RUN: 2886d7fb-c0ee-4a73-8d5b-eb26d029d645